fUST/lending_fUST_20250914
["ID","MTS","AMOUNT","RATE_DAILY","PERIOD"]
[385435576,1757848242858,-480.0,0.00021917,2]
[385435577,1757848242869,-480.0,0.00021917,2]
[385435578,1757848242880,-480.0,0.00021917,2]
[385435579,1757848242891,-480.0,0.00021917,2]
[385435580,1757848242902,-480.0,0.00021917,2]
[385435581,1757848242913,-481.99683548,0.00021917,2]
[385435582,1757848242924,-151.0,0.00021917,2]
[385435583,1757848242934,-480.0,0.00021917,2]
[385435584,1757848242945,-278.7153555,0.00021917,2]
[385435585,1757848242956,-723.75,0.00021917,2]
[385435586,1757848242967,-494.01621461,0.00021917,2]
[385435587,1757848242981,-480.0,0.00021917,2]
[385435588,1757848242992,-480.0,0.00021917,2]
[385435589,1757848243004,-480.0,0.00021917,2]
[385435590,1757848243016,-154.907835,0.00021917,2]
[385435591,1757848243027,-648.31,0.00021917,2]
[385435592,1757848243039,-480.0,0.00021917,2]
[385435593,1757848243051,-480.0,0.00021917,2]
[385435594,1757848243063,-480.0,0.00021917,2]
[385435596,1757848243073,-480.0,0.00021917,2]
[385435597,1757848243084,-151.0,0.00021917,2]
[385435598,1757848243095,-151.0,0.00021917,2]
[385435599,1757848243106,-151.0,0.00021917,2]
[385435600,1757848243117,-151.0,0.00021917,2]
[385435601,1757848243129,-151.0,0.00021917,2]
[385435602,1757848243141,-151.0,0.00021917,2]
[385435603,1757848243152,-480.0,0.00021917,2]
[385435604,1757848243163,-151.0,0.00021917,2]
[385435605,1757848243174,-151.0,0.00021917,2]
[385435606,1757848243185,-151.0,0.00021917,2]
[385435607,1757848243196,-151.0,0.00021917,2]
[385435608,1757848243207,-480.0,0.00021917,2]
[385435609,1757848243218,-151.0,0.00021917,2]
[385435610,1757848243229,-151.0,0.00021917,2]
[385435611,1757848243240,-750.32,0.00021917,2]
[385435612,1757848243251,-480.0,0.00021917,2]
[385435613,1757848243262,-493.64009434,0.00021917,2]
[385435614,1757848243273,-480.0,0.00021917,2]
[385435615,1757848243284,-480.0,0.00021917,2]
[385435616,1757848243295,-532.75868246,0.00021917,2]
[385435617,1757848243306,-499.71,0.00021917,2]
[385435619,1757848243316,-480.0,0.00021917,2]
[385435620,1757848243327,-481.2597782,0.00021917,2]
[385435621,1757848243338,-1000.0,0.00021917,2]
[385435622,1757848243348,-1000.0,0.00021917,2]
[385435623,1757848243361,-1000.0,0.00021917,2]
[385435624,1757848243372,-1000.0,0.00021917,2]
[385435625,1757848243383,-151.0,0.00021917,2]
[385435626,1757848243394,-883.736595,0.00021917,2]
[385435627,1757848243409,-151.0,0.00021917,2]
[385435628,1757848243423,-163.049832,0.00021917,2]
[385435629,1757848243435,-480.88721694,0.00021917,2]
[385435630,1757848243445,-785.0,0.00021917,2]
[385435631,1757848243455,-784.7,0.00021917,2]
[385435632,1757848243465,-157.0,0.00021917,2]
[385435633,1757848243475,-487.48273411,0.00021917,2]
[385435634,1757848243485,-480.0,0.00021917,2]
[385435635,1757848243495,-1003.85,0.00021917,2]
[385435636,1757848243504,-480.0,0.00021917,2]
[385435637,1757848243514,-480.0,0.00021917,2]
[385435638,1757848243530,-481.15704694,0.00021917,2]
[385435639,1757848243542,-2478.43,0.00021917,2]
[385435640,1757848243551,-482.42300143,0.00021917,2]
[385435641,1757848243781,-300.160143,0.00021917,2]
[385435642,1757848243795,-480.87113925,0.00021917,2]
[385435643,1757848243805,-482.11812156,0.00021917,2]
[385435644,1757848243814,-151.0,0.00021917,2]
[385435646,1757848243823,-480.0,0.00021917,2]
[385435648,1757848243832,-151.0,0.00021917,2]
[385435649,1757848243841,-480.0,0.00021917,2]
[385435650,1757848243850,-151.0,0.00021917,2]
[385435651,1757848243859,-151.0,0.00021917,2]
[385435652,1757848243868,-151.0,0.00021917,2]
[385435653,1757848243878,-728.38,0.00021917,2]
[385435654,1757848243887,-226.464148,0.00021917,2]
[385435655,1757848243896,-480.0,0.00021917,2]
[385435656,1757848243905,-3947.87,0.00021917,2]
[385435657,1757848243914,-480.0,0.00021917,2]
[385435658,1757848243923,-480.0,0.00021917,2]
[385435659,1757848243932,-480.0,0.00021917,2]
[385435660,1757848243941,-1247.64,0.00021917,2]
[385435661,1757848243950,-480.0,0.00021917,2]
[385435662,1757848243960,-480.0,0.00021917,2]
[385435663,1757848243969,-480.0,0.00021917,2]
[385435664,1757848243982,-151.0,0.00021917,2]
[385435665,1757848243992,-151.0,0.00021917,2]
[385435666,1757848244001,-151.0,0.00021917,2]
[385435667,1757848244010,-480.0,0.00021917,2]
[385435668,1757848244020,-151.0,0.00021917,2]
[385435669,1757848244029,-480.0,0.00021917,2]
[385435670,1757848244039,-480.0,0.00021917,2]
[385435671,1757848244048,-480.0,0.00021917,2]
[385435672,1757848244057,-1035.36,0.00021917,2]
[385435673,1757848244067,-200.67547189,0.00021917,2]
[385435674,1757848244076,-480.0,0.00021917,2]
[385435675,1757848244086,-480.0,0.00021917,2]
[385435676,1757848244095,-480.0,0.00021917,2]
[385435677,1757848244104,-480.0,0.00021917,2]
[385435678,1757848244113,-3730.16192666,0.00021917,2]
[385435679,1757848244143,-2528.48807334,0.00021917,2]
[385435680,1757848244167,-480.0,0.00021917,2]
[385435681,1757848244201,-480.0,0.00021917,2]
[385435682,1757848244235,-480.0,0.00021917,2]
[385435683,1757848244246,-169.4035223,0.00021917,2]
[385435684,1757848244256,-348.3367903,0.00021917,2]
[385435685,1757848244266,-480.0,0.00021917,2]
[385435686,1757848244275,-689.3,0.00021917,2]
[385435687,1757848244284,-480.0,0.00021917,2]
[385435688,1757848244293,-480.36280551,0.00021917,2]
[385435689,1757848244303,-480.0,0.00021917,2]
[385435690,1757848244312,-480.0,0.00021917,2]
[385435691,1757848244322,-685.41917909,0.00021917,2]
[385435692,1757848244333,-656.88082091,0.00021917,2]
[385435693,1757848244342,-480.0,0.00021917,2]
[385435694,1757848244352,-482.39625531,0.00021917,2]
[385435695,1757848244360,-480.0,0.00021917,2]
[385435696,1757848244370,-98.48233976,0.00021917,2]
[385435697,1757848244398,-985.05766024,0.00021917,2]
[385435698,1757848244408,-1562.82,0.00021917,2]
[385435699,1757848244419,-480.0,0.00021917,2]
[385435700,1757848244431,-480.0,0.00021917,2]
[385435701,1757848244441,-1047.27,0.00021917,2]
[385435702,1757848244450,-480.0,0.00021917,2]
[385435703,1757848244459,-598.87,0.00021917,2]
[385435704,1757848244469,-480.0,0.00021917,2]
[385435705,1757848244478,-480.0,0.00021917,2]
[385435706,1757848244487,-480.0,0.00021917,2]
[385435707,1757848244497,-151.0,0.00021917,2]
[385435708,1757848244506,-1053.32,0.00021917,2]
[385435709,1757848244515,-151.0,0.00021917,2]
[385435710,1757848244525,-151.0,0.00021917,2]
[385435711,1757848244534,-151.0,0.00021917,2]
[385435712,1757848244544,-151.0,0.00021917,2]
[385435713,1757848244553,-151.0,0.00021917,2]
[385435714,1757848244563,-151.0,0.00021917,2]
[385435715,1757848244572,-151.0,0.00021917,2]
[385435716,1757848244582,-151.0,0.00021917,2]
[385435717,1757848244591,-2933.76,0.00021917,2]
[385435718,1757848244601,-151.0,0.00021917,2]
[385435719,1757848244611,-151.0,0.00021917,2]
[385435720,1757848244620,-504.73,0.00021917,2]
[385435721,1757848244629,-151.0,0.00021917,2]
[385435722,1757848244639,-151.0,0.00021917,2]
[385435723,1757848244648,-153.772262,0.00021917,2]
[385435724,1757848244657,-480.0,0.00021917,2]
[385435725,1757848244667,-430.42,0.00021917,2]
[385435726,1757848244676,-369.4033403,0.00021917,2]
[385435727,1757848244686,-480.0,0.00021917,2]
[385435728,1757848244695,-480.25086954,0.00021917,2]
[385435729,1757848244704,-480.0,0.00021917,2]
[385435730,1757848244714,-480.0,0.00021917,2]
[385435731,1757848244723,-480.0,0.00021917,2]
[385435732,1757848244732,-3464.17,0.00021917,2]
[385435733,1757848244741,-1534.77,0.00021917,2]
[385435734,1757848244750,-480.0,0.00021917,2]
[385435735,1757848244759,-480.0,0.00021917,2]
[385435736,1757848244769,-481.08429304,0.00021917,2]
[385435737,1757848244779,-919.31,0.00021917,2]
[385435738,1757848244788,-788.82,0.00021917,2]
[385435739,1757848244798,-480.0,0.00021917,2]
[385435740,1757848244807,-687.67,0.00021917,2]
[385435741,1757848244817,-815.55,0.00021917,2]
[385435742,1757848244826,-480.0,0.00021917,2]
[385435743,1757848244836,-480.0,0.00021917,2]
[385435744,1757848244845,-480.0,0.00021917,2]
[385435745,1757848244856,-539.46,0.00021917,2]
[385435746,1757848244866,-480.0,0.00021917,2]
[385435747,1757848244875,-909.52,0.00021917,2]
[385435748,1757848244885,-30703.17,0.00021917,2]
[385435749,1757848244894,-480.0,0.00021917,2]
[385435750,1757848244903,-1256.64,0.00021917,2]
[385435751,1757848244913,-480.0,0.00021917,2]
[385435752,1757848244922,-638.54,0.00021917,2]
[385435753,1757848244931,-480.0,0.00021917,2]
[385435754,1757848244940,-2432.68,0.00021917,2]
[385435755,1757848244949,-336.26840041,0.00021917,2]
[385435756,1757848244958,-480.0,0.00021917,2]
[385435757,1757848244967,-480.0,0.00021917,2]
[385435758,1757848244976,-480.29324435,0.00021917,2]
[385435759,1757848244985,-1474.35,0.00021917,2]
[385435760,1757848244998,-151.0,0.00021917,2]
[385435761,1757848245008,-213.82,0.00021917,2]
[385435762,1757848245018,-480.0,0.00021917,2]
[385435763,1757848245027,-480.0,0.00021917,2]
[385435764,1757848245038,-483.16271752,0.00021917,2]
[385435765,1757848245048,-880.7,0.00021917,2]
[385435766,1757848245059,-480.0,0.00021917,2]
[385435767,1757848245070,-1325.95,0.00021917,2]
[385435768,1757848245080,-348.22884602,0.00021917,2]
[385435769,1757848245089,-652.52,0.00021917,2]
[385435770,1757848245098,-530.48,0.00021917,2]
[385435771,1757848245107,-480.0,0.00021917,2]
[385435772,1757848245116,-478.36916472,0.00021917,2]
[385435773,1757848245126,-480.0,0.00021917,2]
[385435774,1757848245135,-500.0,0.00021917,2]
[385435775,1757848245145,-467.91463731,0.00021917,2]
[385435776,1757848245154,-7732.59,0.00021917,2]
[385435777,1757848245163,-480.0,0.00021917,2]
[385435778,1757848245173,-481.62278203,0.00021917,2]
[385435779,1757848245182,-151.0,0.00021917,2]
[385435780,1757848245191,-876.42,0.00021917,2]
[385435781,1757848245200,-480.0,0.00021917,2]
[385435782,1757848245210,-480.0,0.00021917,2]
[385435783,1757848245219,-285.731232,0.00021917,2]
[385435784,1757848245229,-581.54,0.00021917,2]
[385435785,1757848245238,-625.99713881,0.00021917,2]
[385435786,1757848245247,-481.82512824,0.00021917,2]
[385435787,1757848245257,-1551.97,0.00021917,2]
[385435788,1757848245266,-480.0,0.00021917,2]
[385435789,1757848245276,-2967.21,0.00021917,2]
[385435790,1757848245286,-3592.64,0.00021917,2]
[385435791,1757848245295,-480.0,0.00021917,2]
[385435792,1757848245305,-480.0,0.00021917,2]
[385435793,1757848245314,-481.08361683,0.00021917,2]
[385435794,1757848245323,-732.64,0.00021917,2]
[385435795,1757848245333,-480.0,0.00021917,2]
[385435796,1757848245342,-480.0,0.00021917,2]
[385435797,1757848245351,-486.14540909,0.00021917,2]
[385435798,1757848245363,-480.0,0.00021917,2]
[385435799,1757848245372,-480.0,0.00021917,2]
[385435800,1757848245381,-1136.98,0.00021917,2]
[385435801,1757848245391,-1518.04,0.00021917,2]
[385435802,1757848245400,-480.0,0.00021917,2]
[385435803,1757848245410,-480.0,0.00021917,2]
[385435804,1757848245419,-482.9095256,0.00021917,2]
[385435805,1757848245429,-500.0,0.00021917,2]
[385435806,1757848245438,-500.0,0.00021917,2]
[385435807,1757848245447,-500.0,0.00021917,2]
[385435808,1757848245458,-1618.02,0.00021917,2]
[385435809,1757848245467,-302.01221425,0.00021917,2]
[385435810,1757848245477,-480.0,0.00021917,2]
[385435811,1757848245486,-480.0,0.00021917,2]
[385435812,1757848245495,-480.0,0.00021917,2]
[385435813,1757848245505,-500.0,0.00021917,2]
[385435814,1757848245514,-220.52901567,0.00021917,2]
[385435815,1757848245524,-257.27411566,0.00021917,2]
[385435816,1757848245534,-1573.78,0.00021917,2]
[385435817,1757848245543,-1076.66,0.00021917,2]
[385435818,1757848245552,-857.85,0.00021917,2]
[385435819,1757848245562,-948.22,0.00021917,2]
[385435820,1757848245571,-1000.0,0.00021917,2]
[385435821,1757848245580,-789.95,0.00021917,2]
[385435822,1757848245590,-1106.17,0.00021917,2]
[385435823,1757848245599,-492.13407604,0.00021917,2]
[385435824,1757848245609,-480.0,0.00021917,2]
[385435825,1757848245618,-3091.17,0.00021917,2]
[385435826,1757848245628,-2384.36,0.00021917,2]
[385435827,1757848245638,-151.0,0.00021917,2]
[385435828,1757848245647,-151.0,0.00021917,2]
[385435829,1757848245656,-480.0,0.00021917,2]
[385435830,1757848245666,-240.457075,0.00021917,2]
[385435831,1757848245676,-480.0,0.00021917,2]
[385435832,1757848245685,-502.07475793,0.00021917,2]
[385435833,1757848245694,-610.9934371,0.00021917,2]
[385435834,1757848245704,-480.0,0.00021917,2]
[385435835,1757848245713,-480.0,0.00021917,2]
[385435836,1757848245723,-482.03772107,0.00021917,2]
[385435837,1757848245732,-480.0,0.00021917,2]
[385435838,1757848245742,-480.0,0.00021917,2]
[385435839,1757848245752,-480.0,0.00021917,2]
[385435840,1757848245762,-480.0,0.00021917,2]
[385435841,1757848245772,-480.0,0.00021917,2]
[385435842,1757848245781,-2799.76,0.00021917,2]
[385435843,1757848245791,-663.08,0.00021917,2]
[385435844,1757848245800,-4270.68,0.00021917,2]
[385435845,1757848245810,-480.0,0.00021917,2]
[385435846,1757848245819,-480.0,0.00021917,2]
[385435847,1757848245829,-480.0,0.00021917,2]
[385435848,1757848245838,-480.0,0.00021917,2]
[385435849,1757848245847,-500.0,0.00021917,2]
[385435850,1757848245856,-500.0,0.00021917,2]
[385435851,1757848245865,-500.0,0.00021917,2]
[385435852,1757848245875,-500.0,0.00021917,2]
[385435853,1757848245884,-480.0,0.00021917,2]
[385435854,1757848245894,-659.56,0.00021917,2]
[385435855,1757848245903,-403.27897225,0.00021917,2]
[385435856,1757848245912,-480.0,0.00021917,2]
[385435857,1757848245922,-500.0,0.00021917,2]
[385435858,1757848245931,-151.0,0.00021917,2]
[385435859,1757848245940,-151.0,0.00021917,2]
[385435860,1757848245950,-151.0,0.00021917,2]
[385435861,1757848245959,-151.0,0.00021917,2]
[385435862,1757848245969,-480.0,0.00021917,2]
[385435863,1757848245978,-480.14329122,0.00021917,2]
[385435864,1757848245988,-480.0,0.00021917,2]
[385435865,1757848245998,-480.0,0.00021917,2]
[385435866,1757848246009,-6982.92,0.00021917,2]
[385435867,1757848246018,-480.0,0.00021917,2]
[385435868,1757848246028,-480.0,0.00021917,2]
[385435869,1757848246037,-645.98,0.00021917,2]
[385435870,1757848246047,-209.38653475,0.00021917,2]
[385435871,1757848246057,-480.0,0.00021917,2]
[385435872,1757848246066,-480.0,0.00021917,2]
[385435873,1757848246076,-480.0,0.00021917,2]
[385435874,1757848246086,-480.50499705,0.00021917,2]
[385435875,1757848246095,-168.30596897,0.00021917,2]
[385435876,1757848246105,-480.0,0.00021917,2]
[385435877,1757848246114,-510.71,0.00021917,2]
[385435880,1757848246124,-480.0,0.00021917,2]
[385435882,1757848246133,-480.0,0.00021917,2]
[385435884,1757848246142,-958.12,0.00021917,2]
[385435886,1757848246152,-4485.92,0.00021917,2]
[385435888,1757848246161,-1161.98,0.00021917,2]
[385435890,1757848246170,-480.0,0.00021917,2]
[385435892,1757848246179,-480.0,0.00021917,2]
[385435894,1757848246189,-480.97665309,0.00021917,2]
[385435895,1757848246200,-480.0,0.00021917,2]
[385435897,1757848246209,-480.0,0.00021917,2]
[385435899,1757848246219,-480.0,0.00021917,2]
[385435901,1757848246229,-670.01,0.00021917,2]
[385435903,1757848246238,-484.91629434,0.00021917,2]
[385435905,1757848246248,-480.94301996,0.00021917,2]
[385435907,1757848246256,-480.0,0.00021917,2]
[385435909,1757848246266,-1617.82,0.00021917,2]
[385435911,1757848246275,-480.0,0.00021917,2]
[385435913,1757848246284,-480.0,0.00021917,2]
[385435915,1757848246293,-1146.22,0.00021917,2]
[385435916,1757848246303,-480.0,0.00021917,2]
[385435917,1757848246311,-480.0,0.00021917,2]
[385435918,1757848246320,-151.0,0.00021917,2]
[385435919,1757848246329,-151.0,0.00021917,2]
[385435920,1757848246337,-151.0,0.00021917,2]
[385435921,1757848246346,-151.0,0.00021917,2]
[385435922,1757848246356,-151.0,0.00021917,2]
[385435923,1757848246365,-151.0,0.00021917,2]
[385435924,1757848246375,-298.834572,0.00021917,2]
[385435925,1757848246384,-1944.11,0.00021917,2]
[385435926,1757848246394,-480.0,0.00021917,2]
[385435927,1757848246403,-501.76,0.00021917,2]
[385435928,1757848246412,-1230.62,0.00021917,2]
[385435929,1757848246422,-151.0,0.00021917,2]
[385435930,1757848246431,-658.87,0.00021917,2]
[385435931,1757848246441,-151.0,0.00021917,2]
[385435932,1757848246451,-171.398839,0.00021917,2]
[385435933,1757848246460,-480.0,0.00021917,2]
[385435934,1757848246470,-480.0,0.00021917,2]
[385435935,1757848246479,-480.0,0.00021917,2]
[385435936,1757848246488,-154.593084,0.00021917,2]
[385435937,1757848246497,-511.07,0.00021917,2]
[385435938,1757848246507,-480.0,0.00021917,2]
[385435939,1757848246517,-1022.83,0.00021917,2]
[385435940,1757848246528,-480.0,0.00021917,2]
[385435941,1757848246538,-1013.94,0.00021917,2]
[385435942,1757848246547,-951.0,0.00021917,2]
[385435943,1757848246556,-488.56911275,0.00021917,2]
[385435944,1757848246566,-480.0,0.00021917,2]
[385435945,1757848246575,-480.7538624,0.00021917,2]
[385435946,1757848246585,-2097.59,0.00021917,2]
[385435947,1757848246595,-152.960931,0.00021917,2]
[385435948,1757848246604,-15124.66,0.00021917,2]
[385435949,1757848246614,-480.0,0.00021917,2]
[385435950,1757848246623,-156.804569,0.00021917,2]
[385435951,1757848246633,-481.00157961,0.00021917,2]
[385435952,1757848246642,-480.0,0.00021917,2]
[385435953,1757848246651,-1061.43,0.00021917,2]
[385435954,1757848246661,-857.5,0.00021917,2]
[385435955,1757848246670,-480.0,0.00021917,2]
[385435956,1757848246680,-480.0,0.00021917,2]
[385435957,1757848246690,-500.33687335,0.00021973,2]
[385435958,1757848246700,-500.0,0.00021973,2]
[385435959,1757848246710,-500.0,0.00021973,2]
[385435960,1757848246720,-500.0,0.00021973,2]
[385435961,1757848246729,-233.0,0.00021983,2]
[385435962,1757848246740,-492.50579481,0.00022,10]
[385435963,1757848246750,-151.0,0.00022,4]
[385435964,1757848246759,-381.76,0.00022,2]
[385435965,1757848246769,-176.24354705,0.00022091,2]
[385435966,1757848246779,-188.5479816,0.00022099,2]
[385435967,1757848246788,-151.0,0.000221,10]
[385435968,1757848246797,-151.0,0.000221,7]
[385435969,1757848246807,-1500.0,0.00022168,2]
[385435970,1757848246816,-1500.0,0.00022168,2]
[385435971,1757848246826,-1500.0,0.00022168,2]
[385435972,1757848246835,-500.0,0.00022173,2]
[385435973,1757848246845,-500.0,0.00022173,2]
[385435974,1757848246854,-500.0,0.00022173,2]
[385435975,1757848246863,-500.0,0.00022173,2]
[385435976,1757848246872,-500.0,0.00022173,2]
[385435977,1757848246881,-500.0,0.00022173,2]
[385435978,1757848246890,-500.0,0.00022173,2]
[385435979,1757848246899,-500.0,0.00022173,2]
[385435980,1757848246908,-500.0,0.00022173,2]
[385435981,1757848246917,-296.4694376,0.00022173,2]
[385435982,1757848246926,-402.78639252,0.00022173,2]
[385435983,1757848246935,-472.21422934,0.00022173,2]
[385435984,1757848246944,-502.72568923,0.00022173,2]
[385435985,1757848246954,-500.0,0.00022173,2]
[385435986,1757848246963,-38523.4101729,0.0002218,2]
[385435987,1757848246972,-3140.7396556,0.0002218,2]
[385435988,1757848246982,-785.0,0.00022191,2]
[385435989,1757848246994,-157.0,0.00022191,2]
[385435990,1757848247004,-480.0,0.00022191,3]
[385435992,1757848247013,-480.0,0.00022191,3]
[385435993,1757848247023,-481.62003569,0.00022191,3]
[385435994,1757848247035,-819.88,0.00022191,3]
[385435995,1757848247044,-490.46469285,0.00022191,3]
[385435996,1757848247053,-480.0,0.00022191,3]
[385435997,1757848247063,-480.0,0.00022191,3]
[385435998,1757848247206,-480.0,0.00022191,3]
[385435999,1757848247219,-480.0,0.00022191,3]
[385436000,1757848247228,-500.0,0.00022191,3]
[385436001,1757848247239,-480.0,0.00022191,3]
[385436002,1757848247248,-480.0,0.00022191,3]
[385436003,1757848247257,-480.0,0.00022191,3]
[385436004,1757848247266,-480.0,0.00022191,3]
[385436005,1757848247276,-494.76533007,0.00022191,3]
[385436006,1757848247285,-480.0,0.00022191,3]
[385436007,1757848247295,-487.57067147,0.00022191,3]
[385436008,1757848247304,-480.0,0.00022191,3]
[385436009,1757848247313,-480.0,0.00022191,3]
[385436010,1757848247322,-480.0,0.00022191,3]
[385436011,1757848247331,-480.0,0.00022191,3]
[385436012,1757848247340,-480.0,0.00022191,3]
[385436013,1757848247350,-480.0,0.00022191,3]
[385436014,1757848247364,-480.0,0.00022191,3]
[385436015,1757848247373,-496.49749978,0.00022191,3]
[385436016,1757848247382,-480.0,0.00022191,3]
[385436017,1757848247391,-480.0,0.00022191,3]
[385436018,1757848247400,-339.01910237,0.00022191,3]
[385436019,1757848247409,-480.0,0.00022191,3]
[385436020,1757848247418,-480.0,0.00022191,3]
[385436021,1757848247428,-480.0,0.00022191,3]
[385436022,1757848247437,-480.0,0.00022191,3]
[385436023,1757848247447,-480.0,0.00022191,3]
[385436024,1757848247457,-480.0,0.00022191,3]
[385436025,1757848247468,-480.0,0.00022191,3]
[385436026,1757848247477,-480.0,0.00022191,3]
[385436027,1757848247487,-480.0,0.00022191,3]
[385436028,1757848247496,-481.79356785,0.00022191,3]
[385436029,1757848247505,-544.42,0.00022191,3]
[385436030,1757848247514,-480.0,0.00022191,3]
[385436031,1757848247525,-480.0,0.00022191,3]
[385436032,1757848247534,-1258.04,0.00022191,3]
[385436033,1757848247544,-480.0,0.00022191,3]
[385436034,1757848247553,-480.0,0.00022191,3]
[385436035,1757848247562,-480.0,0.00022191,3]
[385436036,1757848247572,-480.0,0.00022191,3]
[385436037,1757848247581,-480.0,0.00022191,3]
[385436038,1757848247591,-480.0,0.00022191,3]
[385436039,1757848247600,-557.13594245,0.00022191,3]
[385436040,1757848247609,-480.0,0.00022191,3]
[385436041,1757848247619,-480.0,0.00022191,3]
[385436042,1757848247629,-481.20841161,0.00022191,3]
[385436043,1757848247638,-480.0,0.00022191,3]
[385436044,1757848247648,-480.0,0.00022191,3]
[385436045,1757848247657,-480.0,0.00022191,3]
[385436046,1757848247667,-894.71,0.00022191,3]
[385436047,1757848247676,-480.0,0.00022191,3]
[385436048,1757848247685,-480.0,0.00022191,3]
[385436049,1757848247694,-480.0,0.00022191,3]
[385436050,1757848247704,-480.0,0.00022191,3]
[385436051,1757848247713,-480.0,0.00022191,3]
[385436052,1757848247722,-480.0,0.00022191,3]
[385436053,1757848247731,-483.12566247,0.00022191,3]
[385436054,1757848247741,-417.01339898,0.00022191,3]
[385436055,1757848247750,-480.0,0.00022191,3]
[385436056,1757848247760,-1132.55,0.00022191,3]
[385436057,1757848247769,-480.0,0.00022191,3]
[385436058,1757848247778,-480.0,0.00022191,3]
[385436059,1757848247788,-476.70318431,0.00022191,3]
[385436060,1757848247797,-480.0,0.00022191,3]
[385436061,1757848247807,-480.0,0.00022191,3]
[385436062,1757848247816,-480.0,0.00022191,3]
[385436063,1757848247825,-480.0,0.00022191,3]
[385436064,1757848247835,-480.0,0.00022191,3]
[385436065,1757848247844,-480.0,0.00022191,3]
[385436066,1757848247853,-482.70033551,0.00022191,3]
[385436067,1757848247863,-480.0,0.00022191,3]
[385436068,1757848247873,-480.0,0.00022191,3]
[385436069,1757848247882,-480.0,0.00022191,3]
[385436070,1757848247891,-482.08553901,0.00022191,3]
[385436071,1757848247900,-488.80557099,0.00022191,3]
[385436072,1757848247910,-482.93811442,0.00022191,3]
[385436073,1757848247919,-509.5,0.00022191,3]
[385436074,1757848247928,-480.0,0.00022191,3]
[385436075,1757848247937,-520.06612952,0.00022191,3]
[385436076,1757848247947,-480.0,0.00022191,3]
[385436077,1757848247956,-482.0328333,0.00022191,3]
[385436078,1757848247965,-1152.28,0.00022191,3]
[385436079,1757848247975,-480.0,0.00022191,3]
[385436080,1757848247985,-480.0,0.00022191,3]
[385436081,1757848247997,-480.0,0.00022191,3]
[385436082,1757848248007,-2411.26,0.00022191,3]
[385436083,1757848248016,-480.0,0.00022191,3]
[385436084,1757848248026,-1189.25,0.00022191,3]
[385436085,1757848248037,-480.0,0.00022191,3]
[385436086,1757848248046,-480.0,0.00022191,3]
[385436087,1757848248056,-480.0,0.00022191,3]
[385436088,1757848248066,-480.0,0.00022191,3]
[385436089,1757848248076,-914.96,0.00022191,3]
[385436090,1757848248086,-482.14013962,0.00022191,3]
[385436091,1757848248095,-480.0,0.00022191,3]
[385436092,1757848248105,-480.0,0.00022191,3]
[385436093,1757848248115,-480.0,0.00022191,3]
[385436094,1757848248125,-480.0,0.00022191,3]
[385436095,1757848248135,-480.0,0.00022191,3]
[385436096,1757848248144,-480.0,0.00022191,3]
[385436097,1757848248154,-480.0,0.00022191,3]
[385436098,1757848248163,-808.99,0.00022191,3]
[385436099,1757848248173,-480.0,0.00022191,3]